bitfinex-derivatives/quotes_ETHF0:USTF0_20250404
["timestamp","ask_amount","ask_price","bid_price","bid_amount"]
[1743776128896,2.59897,1791.4,1791.1,4.32481]
[1743776129106,1.11695,1791.3,1791.2,40.8]
[1743776129300,1.5263,1791.3,1791.2,40.8]
[1743776129502,1.5263,1791.3,1791.2,41.91699]
[1743776129707,3.2078,1791.7,1791.2,42.3241]
[1743776129894,1.5263,1791.6,1791.5,1.1168]
[1743776130197,1.3904,1791.7,1791.6,1.11674]
[1743776130400,0.00838387,1791.8,1791.7,1.11668]
[1743776130604,1.53468387,1791.8,1791.7,1.11668]
[1743776130803,0.00838387,1791.8,1791.7,41.91668]
[1743776131005,0.00838387,1791.8,1791.7,45.12448]
[1743776131692,0.00838387,1791.8,1791.7,47.62448]
[1743776131894,3.87e-06,1791.8,1791.7,47.62448]
[1743776132397,3.87e-06,1791.8,1791.7,49.16028]
[1743776132598,3.87e-06,1791.8,1791.7,50.62959229]
[1743776132800,3.87e-06,1791.8,1791.7,49.88038]
[1743776132998,3.87e-06,1791.8,1791.7,45.5436]
[1743776133194,3.87e-06,1791.8,1791.7,44.0078]
[1743776133399,2.54972387,1791.8,1791.7,44.0078]
[1743776133602,1.43310387,1791.8,1791.7,40.8]
[1743776134005,2.54972387,1791.8,1791.7,40.8]
[1743776134202,1.43310387,1791.8,1791.7,40.8]
[1743776134400,8.25752387,1791.8,1791.7,40.8]
[1743776134608,5.75752387,1791.8,1791.7,40.8]
[1743776135100,1.11668,1791.7,1791.6,0.00838387]
[1743776135303,2.55838,1791.7,1791.6,0.00838387]
[1743776135606,6.73354,1791.7,1791.2,3.2078]
[1743776135911,1.11693,1791.3,1791.1,1.117]
[1743776136107,1.4417,1791.2,1791.1,1.117]
[1743776136310,1.4417,1791.2,1791.0,0.74978354]
[1743776136503,1.4417,1791.2,1790.9,1.4988]
[1743776136705,1.4417,1791.2,1791.1,41.91705]
[1743776137107,1.4417,1791.2,1791.1,40.8]
[1743776137296,1.4417,1791.2,1790.5,46.72089]
[1743776137297,7.1495,1791.2,1790.5,49.51433]
[1743776137504,1.11715,1791.0,1790.8,1.11718]
[1743776137803,1.4417,1790.9,1790.5,1.11741]
[1743776138005,1.11733,1790.7,1790.4,4.32524]
[1743776138206,1.4599,1790.6,1790.4,3.2078]
[1743776138401,2.57731,1790.6,1790.4,3.2078]
[1743776138612,1.11746,1790.5,1790.2,1.11759]
[1743776138797,2.57739,1790.4,1790.3,0.75078207]
[1743776139109,2.57739,1790.4,1790.2,1.11761]
[1743776139410,1.1176,1790.3,1790.0,4.32551]
[1743776139610,1.4599,1790.2,1790.1,0.74987703]
[1743776139808,1.4599,1790.2,1790.1,41.54987703]
[1743776140710,1.4599,1790.2,1790.1,40.8]
[1743776140907,2.57751,1790.2,1790.1,40.8]
[1743776141509,5.78531,1790.2,1790.1,40.8]
[1743776141712,1.4599,1790.2,1790.1,40.8]
[1743776142015,2.57751,1790.2,1790.1,40.8]
[1743776142309,2.57751,1790.2,1790.1,42.66807765]
[1743776142310,1.4599,1790.2,1790.1,42.66807765]
[1743776142505,2.51941,1790.4,1790.2,1.11759]
[1743776142708,2.51941,1790.4,1790.2,2.57949]
[1743776143106,2.9005,1790.7,1790.3,5.07537708]
[1743776143306,2.51922,1790.7,1790.4,2.21182003]
[1743776143615,1.11739,1790.6,1790.5,4.892]
[1743776143912,1.4019,1790.6,1790.5,46.44234965]
[1743776144099,0.00838387,1790.9,1790.5,46.44234965]
[1743776144303,1.11736,1790.6,1790.5,45.692]
[1743776144903,1.11736,1790.6,1790.5,40.8]
[1743776145105,2.61486,1790.6,1790.5,40.8]
[1743776145310,5.11486,1790.6,1790.5,40.8]
[1743776145914,2.61486,1790.6,1790.5,40.8]
[1743776146310,1.4975,1790.6,1790.5,41.91743]
[1743776146510,1.4975,1790.6,1790.5,40.8]
[1743776146714,1.4975,1790.6,1790.5,41.91743]
[1743776146915,2.61486,1790.6,1790.5,40.8]
[1743776147116,1.4975,1790.6,1790.5,40.8]
[1743776147316,1.4975,1790.6,1790.5,41.91743]
[1743776147514,1.4975,1790.6,1790.5,40.8]
[1743776147715,1.4975,1790.6,1790.5,41.91743]
[1743776147916,1.12557387,1790.9,1790.8,1.11724]
[1743776148209,2.56407387,1790.9,1790.8,1.11724]
[1743776148416,1.11724,1790.8,1790.7,1.11727]
[1743776148613,2.55574,1790.8,1790.7,1.11727]
[1743776149120,1.4385,1790.8,1790.5,40.8]
[1743776149319,1.11735,1790.7,1790.5,41.91741]
[1743776149520,1.4385,1790.6,1790.5,41.91741]
[1743776149720,1.4385,1790.6,1790.5,42.67068587]
[1743776150016,2.55586,1790.6,1790.5,40.8]
[1743776150218,5.05586,1790.6,1790.5,40.8]
[1743776150812,2.55586,1790.6,1790.5,40.8]
[1743776151211,1.4385,1790.6,1790.5,40.8]
[1743776151409,1.4385,1790.6,1790.5,41.91743]
[1743776151612,1.11724,1790.8,1790.6,1.11733]
[1743776151820,1.4796,1790.7,1790.6,2.53963]
[1743776152019,1.4796,1790.7,1790.6,3.2927501]
[1743776152221,2.5969,1790.7,1790.6,1.4223]
[1743776152413,1.4796,1790.7,1790.6,3.29295559]
[1743776153015,1.50138387,1790.9,1790.8,1.11724]
[1743776153413,1.50138387,1790.9,1790.8,1.87053559]
[1743776153720,2.61856387,1790.9,1790.8,0.75329559]
[1743776154023,1.11736,1790.6,1790.5,40.8]
[1743776154210,7.50218387,1790.9,1790.5,42.67058455]
[1743776154416,1.11736,1790.6,1790.5,42.1919]
[1743776154608,1.11736,1790.6,1790.5,40.8]
[1743776154807,1.11736,1790.6,1790.5,41.55355852]
[1743776155224,1.11736,1790.6,1790.5,40.8]
[1743776155423,1.11755,1790.3,1790.2,4.89]
[1743776155626,1.11755,1790.3,1790.2,5.64405905]
[1743776155826,1.11755,1790.3,1790.2,46.44405905]
[1743776156918,1.11755,1790.3,1790.2,41.55405905]
[1743776157123,1.11755,1790.3,1790.2,40.8]
[1743776157124,6.82535,1790.3,1790.2,40.8]
[1743776157425,1.1178,1789.9,1789.8,0.75449864]
[1743776157622,1.11805,1789.5,1789.4,0.75455709]
[1743776157924,1.11805,1789.5,1789.4,41.55455709]
[1743776158120,2.51865,1789.5,1789.4,41.55455709]
[1743776158320,2.51865,1789.5,1789.4,40.8]
[1743776158919,5.72645,1789.5,1789.4,40.8]
[1743776159325,1.4006,1789.5,1789.4,42.67183113]
[1743776159523,4.5942,1789.8,1789.4,47.86562113]
[1743776159725,4.6406,1789.8,1789.5,0.75297335]
[1743776160029,3.2078,1789.8,1789.7,1.11793]
[1743776160225,4.32566,1789.8,1789.7,0.75278934]
[1743776160424,6.0025,1789.8,1789.1,3.2078]
[1743776160623,1.11811,1789.4,1789.2,42.67142939]
[1743776160922,1.11811,1789.4,1789.3,5.64218539]
[1743776161726,1.11811,1789.4,1789.3,46.44218539]
[1743776161924,1.11811,1789.4,1789.3,41.55399762]
[1743776162222,4.32591,1789.4,1789.3,40.8]
[1743776162421,6.82591,1789.4,1789.3,40.8]
[1743776162819,8.27481,1789.4,1789.3,40.8]
[1743776163516,1.11861,1788.6,1788.5,1.4924]
[1743776163720,1.11857,1788.7,1788.5,2.2068951]
[1743776163925,1.11857,1788.7,1788.6,41.5553951]
[1743776164123,4.33475387,1788.7,1788.6,0.7553951]
[1743776164327,1.1187,1788.5,1788.2,4.89]
[1743776164521,1.1187,1788.5,1788.3,0.75529707]
[1743776164722,1.11862,1788.6,1788.4,1.87402707]
[1743776164923,1.1187,1788.5,1788.2,3.2078]
[1743776165230,1.1187,1788.5,1788.3,0.75536261]
[1743776165415,3.2078,1788.4,1788.1,1.5405]
[1743776165622,3.2078,1788.4,1787.7,9.5486]
[1743776165823,3.2078,1788.4,1788.0,1.5405]
[1743776166016,1.11882,1788.3,1788.1,0.75525425]
[1743776166217,1.11882,1788.3,1788.2,40.8]
[1743776166625,1.11905,1787.9,1787.8,0.75491483]
[1743776166824,1.11913,1787.8,1787.5,1.11927]
[1743776167027,1.11913,1787.8,1787.6,0.75547362]
[1743776167226,3.2078,1787.9,1787.7,40.8]
[1743776167424,1.11911,1787.8,1787.7,40.8]
[1743776167832,3.61911,1787.8,1787.7,40.8]
[1743776168024,1.1193,1787.5,1787.3,4.89]
[1743776168220,1.11936,1787.4,1787.3,4.89]
[1743776168419,3.2078,1787.5,1787.1,3.2078]
[1743776168722,3.2078,1787.5,1787.3,40.8]
[1743776169132,4.32713,1787.5,1787.3,40.8]
[1743776169426,3.2078,1787.5,1787.3,40.8]
[1743776169633,1.11924,1787.6,1787.3,40.8]
[1743776169930,3.2078,1787.7,1787.3,40.8]
[1743776170124,1.11936,1787.4,1787.3,40.8]
[1743776172228,3.61936,1787.4,1787.3,40.8]
[1743776173426,5.02636,1787.4,1787.3,40.8]
[1743776173830,2.52636,1787.4,1787.3,40.8]
[1743776174232,5.02636,1787.4,1787.3,40.8]
[1743776174938,2.79872,1787.3,1786.7,3.2078]
[1743776175135,1.11965,1787.0,1786.8,1.4571]
[1743776175437,1.11968,1786.9,1786.8,1.4571]
[1743776175835,2.80733387,1787.1,1786.5,3.2078]
[1743776176130,1.11968,1786.9,1786.8,40.8]
[1743776176330,3.2078,1786.6,1785.0,11.82027459]
[1743776176532,3.2078,1785.9,1785.4,2.57769]
[1743776176730,3.2078,1785.9,1785.4,4.6649]
[1743776176932,0.00838387,1786.0,1785.4,1.4571]
[1743776177239,0.00838387,1786.0,1785.6,1.12046]
[1743776177431,0.00838387,1786.0,1785.7,1.4449]
[1743776177932,1.12037,1785.8,1785.7,1.4449]
[1743776178537,3.2078,1785.9,1785.7,1.4449]
[1743776178538,4.32812,1785.9,1785.7,1.4449]
[1743776178738,1.12037,1785.8,1785.7,1.4449]
[1743776178932,4.32815,1785.9,1785.7,1.4449]
[1743776179133,4.32814,1785.9,1785.7,1.4449]
[1743776179328,3.2078,1785.9,1785.7,1.4449]
[1743776179532,0.00838387,1786.0,1785.8,3.2078]
[1743776179737,1.12862387,1786.0,1785.9,1.4449]
[1743776179935,0.00838387,1786.0,1785.9,10.666]
[1743776180135,0.00838387,1786.0,1785.9,6.3379]
[1743776180330,3.2078,1786.8,1786.0,2.8006]
[1743776180545,1.11994,1786.5,1786.3,4.3278]
[1743776180738,3.2078,1786.8,1786.4,1.5384]
[1743776180934,1.12024,1786.0,1785.9,40.8]
[1743776181641,0.00838387,1786.1,1786.0,1.12019]
[1743776182033,0.00838387,1786.1,1786.0,5.15859]
[1743776182335,1.4696,1786.7,1786.5,1.1199]
[1743776182535,5.828,1787.0,1786.4,3.2078]
[1743776182737,3.2078,1786.1,1784.7,3.2078]
[1743776182937,3.2078,1785.6,1785.3,1.12068]
[1743776183141,3.2078,1785.6,1785.3,4.893]
[1743776183337,3.2078,1785.6,1785.4,2.55759]
[1743776183638,3.2078,1785.6,1785.5,40.8]
[1743776183939,4.32829,1785.6,1785.5,40.8]
[1743776184138,3.2078,1785.6,1785.5,40.8]
[1743776184343,4.6687,1785.6,1785.5,40.8]
[1743776184838,5.78919,1785.6,1785.5,40.8]
[1743776185339,4.6687,1785.6,1785.5,40.8]
[1743776185543,3.2078,1785.6,1785.5,41.92056]
[1743776186143,3.21618387,1785.7,1785.6,1.12049]
[1743776186346,3.21618387,1785.7,1785.6,2.52749]
[1743776186643,4.33661387,1785.7,1785.6,1.407]
[1743776186851,1.12052,1785.6,1785.3,4.90238387]
[1743776187148,1.12056,1785.5,1785.4,1.407]
[1743776187348,3.2078,1785.5,1785.4,43.32762]
[1743776187549,4.32836,1785.5,1785.4,42.207]
[1743776187737,4.32836,1785.5,1785.4,40.8]
[1743776188251,3.2078,1785.5,1785.4,40.8]
[1743776188551,4.32836,1785.5,1785.4,42.207]
[1743776188744,4.32836,1785.5,1785.4,40.8]
[1743776188745,3.2078,1785.5,1785.4,40.8]
[1743776188945,3.2078,1785.5,1785.4,41.92062]
[1743776189143,4.6556,1785.5,1785.4,40.8]
[1743776189337,4.6556,1785.5,1784.5,0.42600173]
[1743776189338,15.78502,1785.5,1784.5,0.42600173]
[1743776189543,3.2078,1784.9,1784.8,1.12099]
[1743776189739,3.2078,1785.1,1785.0,1.12087]
[1743776190138,3.2078,1785.3,1785.2,1.12074]
[1743776190655,3.2078,1785.3,1785.2,8.51574]
[1743776190840,3.2078,1785.3,1785.2,6.02412387]
[1743776191151,3.2078,1785.3,1785.2,8.51574]
[1743776191349,1.4027,1785.6,1785.5,1.12056]
[1743776191549,0.00838387,1785.7,1785.6,1.12049]
[1743776192252,0.00838387,1785.7,1785.6,41.92049]
[1743776192551,3.62881387,1785.7,1785.6,40.8]
[1743776192746,2.8014,1785.5,1784.8,4.895]
[1743776192949,3.2078,1785.0,1784.5,2.80295]
[1743776193155,4.32879,1784.8,1784.6,2.64218]
[1743776193454,3.2078,1784.7,1784.6,2.64218]
[1743776193650,3.2078,1784.7,1784.6,42.32948387]
[1743776193853,6.82886,1784.7,1784.6,40.8]
[1743776194651,8.36406,1784.7,1784.6,40.8]
[1743776195350,2.80304,1784.5,1783.9,0.73524086]
[1743776195654,3.2078,1784.0,1783.9,1.12151]
[1743776195954,3.2078,1784.0,1783.9,0.73525922]
[1743776196155,3.2078,1784.0,1783.9,41.53525922]
[1743776196455,5.8524,1784.0,1783.9,40.8]
[1743776196952,4.7309,1784.0,1783.9,40.8]
[1743776197143,3.2078,1784.0,1783.9,42.65673956]
[1743776197653,3.19941613,1784.3,1784.2,1.12137]
[1743776197948,3.19941613,1784.3,1784.2,6.76654956]
[1743776198154,3.19941613,1784.3,1784.2,9.26654956]
[1743776198355,1.5231,1784.7,1784.3,1.12131]
[1743776198550,3.2078,1785.0,1784.9,1.12093]
[1743776198746,1.4982,1785.2,1785.1,1.12081]
[1743776198951,3.2078,1785.5,1785.2,1.1207]
[1743776199145,3.2078,1785.3,1785.0,1.5341]
[1743776199348,3.2078,1785.1,1784.6,3.2078]
[1743776199549,1.4982,1785.0,1784.9,1.12093]
[1743776199854,2.61907,1785.0,1784.9,41.53457183]
[1743776200055,2.61907,1785.0,1784.9,40.8]
[1743776200446,1.4982,1785.0,1784.9,40.8]
[1743776201052,1.4982,1785.0,1784.9,42.6555921]
[1743776201254,3.21620759,1785.3,1784.9,46.4506621]
[1743776201458,1.4982,1785.2,1785.1,1.12078]
[1743776201660,1.4982,1785.2,1785.1,1.8554421]
[1743776202055,0.00840759,1785.3,1785.2,1.12074]
[1743776202253,1.4123,1785.6,1785.5,1.12056]
[1743776202254,1.508,1785.6,1785.5,1.12056]
[1743776202453,4.3282,1785.8,1785.6,1.12048]
[1743776202658,1.508,1785.7,1785.6,1.12048]
[1743776202854,1.508,1785.7,1785.6,1.8550011]
[1743776203054,2.62843,1785.7,1785.6,0.73442719]
[1743776203362,1.508,1785.7,1785.6,1.85491719]
[1743776203761,1.508,1785.7,1785.6,0.73442719]
[1743776203957,5.12843,1785.7,1785.6,0.73442719]
[1743776204261,1.12058,1785.5,1785.3,1.12065]
[1743776204457,1.508,1785.4,1785.3,1.12065]
[1743776204763,1.508,1785.4,1785.3,0.73584973]
[1743776205061,1.508,1785.4,1785.3,1.85652973]
[1743776205259,5.76845,1785.7,1785.5,1.12051]
[1743776205451,5.76843,1785.7,1785.6,0.73584973]
[1743776205652,4.648,1785.7,1785.2,1.5188]
[1743776205856,1.12064,1785.4,1785.3,0.73694569]
[1743776206156,1.12087,1785.0,1784.9,40.8]
[1743776206368,3.2078,1785.0,1784.9,41.53680095]
[1743776206659,3.2078,1785.0,1784.9,42.65846074]
[1743776206861,3.2078,1785.2,1785.1,1.12081]
[1743776207052,3.2078,1785.2,1785.1,1.85834074]
[1743776207356,1.4402,1785.3,1785.2,1.12074]
[1743776207561,1.4681,1785.6,1785.5,1.12056]
[1743776207857,1.4681,1785.6,1785.5,1.85809074]
[1743776208055,1.421,1785.6,1785.5,1.85809074]
[1743776208259,1.421,1785.6,1785.5,6.75509074]
[1743776208451,3.2078,1785.7,1785.6,1.12049]
[1743776208650,0.00840759,1785.8,1785.7,1.12043]
[1743776208856,0.00840759,1785.8,1785.7,1.85796074]
[1743776209163,0.00840759,1785.8,1785.7,42.65796074]
[1743776210160,0.00840759,1785.8,1785.7,42.65778711]
[1743776210463,0.00840759,1785.8,1785.7,44.19418711]
[1743776210655,3.2078,1786.1,1785.8,2.80085]
[1743776210855,3.2078,1786.1,1786.0,1.12024]
[1743776211164,3.2078,1786.1,1786.0,1.85759711]
[1743776211361,4.6284,1786.1,1786.0,1.85759711]
[1743776211563,1.4206,1786.1,1786.0,44.11799711]
[1743776211765,4.6284,1786.1,1786.0,44.11799711]
[1743776211963,5.74858,1786.1,1786.0,41.53812617]
[1743776212258,0.00840759,1786.2,1786.1,1.12018]
[1743776212463,2.54912759,1786.2,1786.1,0.73812617]
[1743776212665,1.42900759,1786.2,1786.1,1.85830617]
[1743776212866,2.54912759,1786.2,1786.1,41.53826782]
[1743776213063,1.42900759,1786.2,1786.1,41.53826782]
[1743776213261,1.42900759,1786.2,1786.1,1.85844782]
[1743776213759,3.2078,1786.5,1786.4,1.11999]
[1743776213959,4.6827,1786.5,1786.4,1.85825782]
[1743776214157,1.4749,1786.5,1786.4,1.85825782]
[1743776215161,0.00840759,1786.6,1786.5,1.11993]
[1743776215358,2.60317759,1786.6,1786.5,0.73826782]
[1743776216361,1.48330759,1786.6,1786.1,40.8]
[1743776216670,3.2078,1786.5,1786.2,0.73590926]
[1743776216864,3.2078,1786.5,1786.3,0.73590926]
[1743776217163,1.48330759,1786.6,1786.5,1.11993]
[1743776217365,0.00840759,1786.6,1786.5,6.75099801]
[1743776217861,0.00840759,1786.6,1786.5,9.95879801]
[1743776218055,3.2078,1787.1,1786.6,2.79967]
[1743776218262,5.84789,1787.1,1786.9,1.11964]
[1743776218457,1.11967,1787.0,1786.9,4.895]
[1743776218662,1.11967,1787.0,1786.6,6.74881563]
[1743776218663,1.5205,1787.0,1786.6,6.74881563]
[1743776218863,4.7283,1787.0,1786.7,1.1198]
[1743776219067,3.2078,1786.8,1786.7,1.1198]
[1743776219272,3.2078,1786.8,1786.7,1.12820759]
[1743776219469,4.32754,1786.8,1786.7,0.00840759]
[1743776219667,1.4235,1786.8,1786.7,1.12820759]
[1743776219871,1.4235,1786.8,1786.7,1.45240759]
[1743776220170,3.2078,1786.8,1786.7,1.45240759]
[1743776220362,0.00840759,1787.0,1786.8,1.11974]
[1743776220363,1.4235,1786.9,1786.8,1.11974]
[1743776220564,1.4235,1786.9,1786.8,41.91974]
[1743776220767,0.00840759,1787.0,1786.9,1.11968]
[1743776220958,1e-08,1787.0,1786.9,3.29656363]
[1743776221162,1e-08,1787.0,1786.9,5.79656363]
[1743776221362,1e-08,1787.0,1786.9,2.56368]
[1743776221572,1e-08,1787.0,1786.9,44.09656363]
[1743776221775,1e-08,1787.0,1786.9,45.86368]
[1743776221974,1e-08,1787.0,1786.9,46.59656363]
[1743776222166,1e-08,1787.0,1786.9,52.93456363]
[1743776222473,1e-08,1787.0,1786.9,52.20168]
[1743776223771,1.5234,1787.5,1787.1,2.79881]
[1743776224073,8.25112,1788.3,1786.9,56.68028]
[1743776224074,4.32688,1787.9,1787.7,1.11918]
[1743776224271,1.11911,1787.8,1787.7,4.893]
[1743776224574,1.5234,1787.8,1787.7,7.45848]
[1743776224768,4.32678,1788.1,1787.8,1.11911]
[1743776224964,1.5234,1788.1,1788.0,4.32679]
[1743776225161,20.45409113,1788.8,1788.3,1.11877]
[1743776225471,1.11881,1788.3,1788.2,4.893]
[1743776225667,1.11889,1788.2,1788.0,40.8]
[1743776225863,5.80213,1788.1,1788.0,45.693]
[1743776226064,4.6832,1788.1,1788.0,45.693]
[1743776226468,1.4754,1788.1,1788.0,45.693]
[1743776226782,4.6832,1788.1,1788.0,45.693]
[1743776226980,4.6832,1788.1,1788.0,46.81199]
[1743776227269,8.30213,1788.1,1788.0,40.8]
[1743776227469,1.11918,1787.7,1787.6,0.00840759]
[1743776227668,4.32691,1787.8,1787.6,0.00840759]
[1743776227868,1.4754,1787.7,1787.6,0.00840759]
[1743776228076,2.59458,1787.7,1787.6,0.00840759]
[1743776228277,5.46438,1787.7,1787.6,0.00840759]
[1743776228772,1.11943,1787.3,1787.2,40.8]
[1743776228967,1.11943,1787.3,1787.0,1.11956]
[1743776228968,4.32723,1787.3,1787.0,1.11956]
[1743776229173,3.2078,1787.1,1787.0,2.57516]
[1743776229471,1.4057,1787.2,1787.0,42.2556]
[1743776229670,3.2078,1787.1,1787.0,40.8]
[1743776230065,3.2078,1787.1,1786.9,0.00840759]
[1743776230272,1.4057,1787.0,1786.9,0.00840759]
[1743776230467,2.52531,1787.0,1786.9,40.80840759]
[1743776230775,3.97351,1787.0,1786.9,40.80840759]
[1743776231376,1.4057,1787.0,1786.9,41.92808759]
[1743776231671,3.2078,1787.1,1786.9,40.80840759]
[1743776231874,4.7386,1787.1,1787.0,4.891]
[1743776232070,5.85815,1787.1,1787.0,4.891]
[1743776232274,1.11961,1787.0,1786.9,40.80840759]
[1743776232577,2.65041,1787.0,1786.9,40.80840759]
[1743776232975,5.15041,1787.0,1786.9,40.80840759]
[1743776233281,5.15041,1787.0,1786.3,4.891]
[1743776233282,1.11993,1786.5,1786.3,4.891]
[1743776233577,1.5308,1786.4,1786.3,6.01105]
[1743776233773,2.65079,1786.4,1786.3,4.891]
[1743776234173,2.65079,1786.4,1785.8,0.73330722]
[1743776234174,1.12021,1786.1,1785.8,0.73330722]
[1743776234371,4.0308,1786.4,1785.8,0.73330722]
[1743776234372,4.6591,1786.3,1786.2,1.12852759]
[1743776234680,0.00840759,1786.4,1786.3,1.12001]
[1743776234876,3.2078,1787.0,1786.4,1.11999]
[1743776235090,3.2078,1787.0,1786.9,1.11968]
[1743776235282,3.2078,1787.0,1786.9,6.01068]
[1743776235478,3.2078,1787.4,1786.9,7.391]
[1743776235679,3.2078,1787.4,1787.2,1.11946]
[1743776235680,1.407,1787.3,1787.2,1.11946]
[1743776235983,1.407,1787.3,1787.2,2.57686]
[1743776236181,3.21620759,1787.4,1787.3,1.11943]
[1743776236372,2.02241519,1787.4,1787.3,6.74389103]
[1743776236681,0.00840759,1787.4,1787.3,12.45169103]
[1743776236882,0.00840759,1787.4,1787.3,13.90409103]
[1743776237071,0.00840759,1787.4,1787.3,54.70409103]
[1743776237274,7.59e-06,1787.4,1787.3,54.70409103]
[1743776237779,1.407,1788.0,1787.6,2.7981]
[1743776237982,1.11903,1788.0,1787.7,7.04366103]
[1743776238179,2.64236,1788.1,1787.8,0.73346103]
[1743776238382,2.64235,1788.1,1787.9,2.15266103]
[1743776238580,1.5234,1788.1,1787.9,1.4192]
[1743776238780,2.64233,1788.1,1788.0,0.73372834]
[1743776238986,2.64233,1788.1,1787.9,1.4192]
[1743776239181,1.5234,1788.1,1787.9,1.4192]
[1743776239482,0.00529158,1788.2,1788.0,41.53385339]
[1743776239677,0.00529158,1788.2,1788.1,4.89]
[1743776240279,1.52869158,1788.2,1788.1,4.89]
[1743776240580,4.73649158,1788.2,1787.6,4.89]
[1743776240883,4.73649158,1788.2,1787.7,0.73312083]
[1743776241087,1.119,1788.0,1787.8,40.8]
[1743776241284,1.5368,1787.9,1787.8,40.8]
[1743776241485,1.5368,1787.9,1787.8,41.53291432]
[1743776241876,1.5368,1787.9,1787.8,40.8]
[1743776242083,1.5368,1787.9,1787.1,0.00840759]
[1743776242084,2.79795,1787.7,1787.1,0.00840759]
[1743776242379,1.1194,1787.4,1787.1,0.00840759]
[1743776242575,1.5368,1787.3,1787.2,41.53310297]
[1743776242890,4.32723,1787.3,1787.2,40.8]
[1743776243091,1.5368,1787.3,1787.2,40.8]
[1743776243293,1.5368,1787.3,1787.2,41.53368868]
[1743776243488,2.65623,1787.3,1787.2,41.53368868]
[1743776243685,2.65623,1787.3,1787.2,40.8]
[1743776244491,5.86403,1787.3,1787.2,41.53396646]
[1743776244694,2.65623,1787.3,1787.2,40.8]
[1743776244993,5.86403,1787.3,1787.2,40.8]
[1743776245790,1.5368,1787.3,1787.2,41.91949]
[1743776245988,1.5368,1787.3,1787.2,40.8]
[1743776246188,1.5368,1787.3,1787.2,41.91949]
[1743776246390,1.5368,1787.3,1787.2,42.65339472]
[1743776246593,2.65623,1787.3,1787.2,41.53390472]
[1743776246785,5.86403,1787.3,1787.2,40.8]
[1743776246981,2.65623,1787.3,1787.2,40.8]
[1743776247182,5.86403,1787.3,1787.2,40.8]
[1743776247383,1.5368,1787.3,1787.2,42.65396434]
[1743776247890,1.5368,1787.3,1787.2,42.65408821]
[1743776248889,1.3924,1787.8,1787.2,46.83327821]
[1743776249193,1.11935,1787.5,1787.3,0.73459821]
[1743776249401,2.9512,1787.7,1787.4,0.73459821]
[1743776249702,1.4759,1787.7,1787.5,5.62459821]
[1743776249898,2.59508,1787.7,1787.6,5.62459821]
[1743776250197,1.4759,1787.7,1787.6,6.74383821]
[1743776250396,1.5371,1788.1,1788.0,1.11899]
[1743776250590,1.45149158,1788.2,1788.1,1.11893]
[1743776250789,1.45149158,1788.2,1788.1,1.85284837]
[1743776250994,3.2078,1788.7,1788.1,4.35284837]
[1743776251194,1.11862,1788.6,1788.4,3.2078]
[1743776251395,1.11884,1788.3,1788.0,4.89]
[1743776251697,1.1188,1788.4,1788.1,41.53349888]
[1743776251898,1.5328,1788.2,1788.1,40.8]
[1743776252098,1.5328,1788.2,1788.1,42.65218461]
[1743776252698,3.2078,1788.7,1788.1,45.45945461]
[1743776252901,1.11877,1788.4,1788.2,1.85207461]
[1743776253097,1.4687,1788.3,1788.2,1.11882]
[1743776253298,1.4687,1788.3,1788.2,0.73276887]
[1743776253494,2.5875,1788.3,1788.2,0.73273149]
[1743776253692,1.11886,1788.2,1788.1,40.8]
[1743776253896,2.58756,1788.2,1788.1,41.53278818]
[1743776254401,1.4687,1788.2,1788.1,41.53278818]
[1743776254594,3.0685,1788.9,1788.5,1.11867]
[1743776254793,3.2078,1789.2,1788.7,3.2078]
[1743776254995,1.4687,1789.1,1788.8,7.14485452]
[1743776255201,1.4687,1789.1,1788.9,0.73204939]
[1743776255391,1.4687,1789.1,1789.0,1.84939006]
[1743776255597,1.118,1789.6,1789.2,1.1182]
[1743776255793,3.2078,1789.6,1789.2,4.888]
[1743776256096,1.4687,1789.5,1789.4,1.11811]
[1743776256301,1.4687,1789.5,1789.4,5.0560578]
[1743776256501,14.94057948,1789.9,1789.4,9.2331578]
[1743776256702,1.429,1789.9,1789.8,4.32566]
[1743776257005,1.429,1789.9,1789.8,9.21366]
[1743776257206,3.2078,1790.2,1790.0,1.11771]
[1743776257395,3.31951936,1790.2,1790.0,1.11771]
[1743776257595,3.31951936,1790.2,1789.8,8.0958]
[1743776257596,3.31951936,1790.2,1789.8,4.888]
[1743776257801,3.31951936,1790.2,1789.9,41.91775]
[1743776257802,1.429,1790.1,1789.9,41.91775]
[1743776258002,1.429,1790.1,1790.0,1.11774]
[1743776258404,3.31951936,1790.2,1790.1,1.11768]
[1743776258603,3.31951936,1790.2,1790.1,41.91768]
[1743776259299,3.31951936,1790.2,1790.1,40.8]
[1743776259802,9.36e-06,1790.2,1790.1,47.62548]
[1743776260109,1.5182,1790.7,1790.6,1.11736]
[1743776260309,1.5182,1790.7,1790.6,8.0928]
[1743776261002,1.5182,1790.7,1790.6,4.885]
[1743776261801,1.5182,1790.7,1790.6,6.00236]
[1743776262007,1.5182,1790.7,1790.6,7.44436]
[1743776262309,3.2078,1790.9,1790.8,1.11724]
[1743776262798,1.5182,1791.1,1790.8,1.11719]
[1743776262799,4.726,1791.1,1790.8,1.11719]
[1743776263001,4.726,1791.1,1790.9,40.8]
[1743776263201,7.51864,1791.1,1790.5,0.00838339]
[1743776263402,1.11727,1790.8,1790.5,0.00838339]
[1743776263603,2.51054,1790.7,1790.5,0.00838339]
[1743776263901,4.32516,1790.6,1790.5,0.00838339]
[1743776264102,5.71836,1790.6,1790.5,0.00838339]
[1743776264609,8.21836,1790.6,1790.5,0.00838339]
[1743776264998,2.51056,1790.6,1790.5,0.00838339]
[1743776265200,1.3932,1790.6,1790.5,0.00838339]